fUSD/lending_fUSD_20240513
["ID","MTS","AMOUNT","RATE_DAILY","PERIOD"]
[326909452,1715558511472,-938.73301384,0.00010953,2]
[326909530,1715559031800,-2184.52280122,0.00010855,2]
[326909531,1715559031809,-1026.17719878,0.00010856,2]
[326909532,1715559031910,-556.01270595,0.00010856,2]
[326909533,1715559031921,-205.28876192,0.00010856,2]
[326909534,1715559031930,-10359.15452498,0.00010857,2]
[326909535,1715559031941,-3625.35788963,0.00010857,2]
[326909536,1715559032020,-672.3424,0.00010857,2]
[326909537,1715559032031,-3400.39942654,0.00010857,2]
[326909538,1715559032042,-588.71486484,0.00010857,2]
[326909577,1715559037922,-155.9463,0.00010757,2]
[326909578,1715559037932,-4169.23434509,0.00010857,2]
[326909579,1715559037941,-530.00038718,0.00010858,2]
[326909580,1715559037951,-153.77612288,0.00010859,2]
[326909581,1715559037960,-170.73,0.00010959,2]
[326909582,1715559037969,-853.69,0.00010959,2]
[326909583,1715559037979,-150.0,0.00011117,2]
[326909584,1715559037989,-1871.29,0.00011145,3]
[326909585,1715559037998,-851.39,0.0001115,2]
[326909586,1715559038007,-1500.0,0.00011341,2]
[326909587,1715559038016,-607.67,0.00011376,2]
[326909588,1715559038025,-169.33,0.00011384,2]
[326909589,1715559038034,-2167.4,0.00011386,2]
[326909590,1715559038043,-161.03,0.00011387,2]
[326909591,1715559038053,-161.03,0.00011391,2]
[326909592,1715559038062,-161.03,0.00011396,2]
[326909593,1715559038071,-161.03,0.00011401,2]
[326909594,1715559038081,-161.03,0.00011406,2]
[326909595,1715559038091,-161.03,0.0001141,2]
[326909596,1715559038100,-161.03,0.00011415,2]
[326909597,1715559038109,-161.03,0.0001142,2]
[326909598,1715559038118,-23150.45,0.00011424,2]
[326909599,1715559038127,-161.03,0.00011425,2]
[326909600,1715559038137,-161.03,0.00011429,2]
[326909601,1715559038146,-161.03,0.00011434,2]
[326909602,1715559038156,-161.03,0.00011439,2]
[326909603,1715559038165,-161.03,0.00011443,2]
[326909604,1715559038174,-250.0,0.000115,2]
[326909605,1715559038184,-236.67,0.00011546,2]
[326909606,1715559038193,-250.0,0.00011669,2]
[326909608,1715559038202,-185.76,0.00011726,2]
[326909610,1715559038212,-162.83,0.00011738,2]
[326909611,1715559038222,-415.08,0.00011741,2]
[326909612,1715559038232,-415.08,0.00011741,2]
[326909613,1715559038242,-167.32,0.00011771,2]
[326909614,1715559038251,-386.06,0.00011828,2]
[326909615,1715559038262,-415.08,0.00011841,2]
[326909616,1715559038271,-415.08,0.00011941,2]
[326909617,1715559038282,-5000.0,0.00012,2]
[326909618,1715559038292,-415.08,0.00012041,2]
[326909619,1715559038301,-415.08,0.00012041,2]
[326909620,1715559038311,-415.08,0.00012041,2]
[326909621,1715559038320,-162.83,0.00012044,2]
[326909622,1715559038330,-19618.93418788,0.00012265,2]
[326909623,1715559038340,-2433.0,0.00012266,2]
[326909624,1715559038349,-219.243,0.00012266,2]
[326909625,1715559038359,-215.0,0.00012266,2]
[326909626,1715559038368,-443.0,0.00012266,2]
[326909627,1715559038377,-1463.0,0.00012266,2]
[326909628,1715559038386,-1219.0,0.00012266,2]
[326909629,1715559038396,-5911.0,0.00012266,2]
[326909630,1715559038405,-4727.587,0.00012266,2]
[326909631,1715559038414,-37831.0,0.00012266,2]
[326909632,1715559038424,-288.0,0.00012266,2]
[326909633,1715559038433,-244.0,0.00012266,2]
[326909634,1715559038442,-1059.0,0.00012266,2]
[326909635,1715559038451,-958.65,0.000123,2]
[326909636,1715559038460,-415.08,0.00012341,2]
[326909637,1715559038469,-162.83,0.0001235,2]
[326909638,1715559038478,-150.0,0.00012404,2]
[326909639,1715559038487,-150.0,0.00012404,2]
[326909640,1715559038497,-1398.0,0.00012404,2]
[326909641,1715559038506,-2157.0,0.00012404,2]
[326909642,1715559038516,-966.372,0.00012404,2]
[326909643,1715559038525,-1225.0,0.00012404,2]
[326909644,1715559038538,-543.0,0.00012404,2]
[326909645,1715559038548,-1261.0,0.00012404,2]
[326909646,1715559038557,-1789.0,0.00012404,2]
[326909647,1715559038568,-612.0,0.00012404,2]
[326909648,1715559038578,-809.0,0.00012404,2]
[326909649,1715559038587,-181.072,0.00012404,2]
[326909650,1715559038597,-965.5,0.000125,2]
[326909651,1715559038606,-1077.13,0.000125,2]
[326909652,1715559038618,-224.99,0.000125,2]
[326909653,1715559038628,-611.57,0.000125,2]
[326909654,1715559038637,-1000.0,0.000125,2]
[326909655,1715559038647,-1000.0,0.00012501,2]
[326909656,1715559038656,-1082.22543658,0.00012515,2]
[326909657,1715559038666,-150.0,0.00012543,2]
[326909658,1715559038675,-851.39,0.00012544,2]
[326909659,1715559038684,-1000.0,0.00012552,2]
[326909660,1715559038694,-415.08,0.000126,2]
[326909661,1715559038704,-20015.748615,0.00012617,2]
[326909662,1715559038713,-415.08,0.000127,2]
[326909663,1715559038722,-415.08,0.000127,2]
[326909664,1715559038732,-415.08,0.000127,2]
[326909665,1715559038742,-415.08,0.000127,2]
[326909666,1715559038751,-1000.0,0.00012706,2]
[326909667,1715559038760,-1000.0,0.00012723,2]
[326909668,1715559038770,-415.08,0.00012741,2]
[326909669,1715559038779,-178.29850383,0.00012769,2]
[326909670,1715559038789,-250.66076014,0.00012769,2]
[326909671,1715559038798,-180.00360704,0.0001277,2]
[326909672,1715559038807,-1500.0,0.0001277,2]
[326909673,1715559038817,-327.38477106,0.00012787,2]
[326909674,1715559038826,-965.66,0.0001279,2]
[326909675,1715559038835,-611.71693686,0.00012793,2]
[326909676,1715559038845,-988.65,0.000128,2]
[326909677,1715559038855,-965.35,0.000128,2]
[326909678,1715559038864,-21161.38169227,0.000128,2]
[326909679,1715559038877,-149707.47626231,0.000128,2]
[326909680,1715559038898,-2724.0,0.000128,2]
[326909681,1715559038910,-69184.95546283,0.000128,2]
[326909682,1715559038921,-408.648082,0.000128,2]
[326909683,1715559038931,-7500.0,0.000128,2]
[326909684,1715559038940,-327.38477106,0.00012807,2]
[326909685,1715559038949,-1000.0,0.00012808,2]
[326909686,1715559038959,-327.38477106,0.00012827,2]
[326909687,1715559038969,-327.38477106,0.00012846,2]
[326909688,1715559038978,-815.92562517,0.0001285,2]
[326909689,1715559038987,-72.67587852,0.00012866,2]
[326909690,1715559038999,-254.70889254,0.00012866,2]
[326909691,1715559039009,-599.56,0.00012876,2]
[326909692,1715559039020,-500.0,0.00012876,2]
[326909693,1715559039030,-500.0,0.00012876,2]
[326909694,1715559039039,-689.63,0.00012876,2]
[326909695,1715559039048,-1000.0,0.00012876,2]
[326909696,1715559039059,-327.38477106,0.00012886,2]
[326909697,1715559039068,-253.26705319,0.00012886,2]
[326909698,1715559039078,-181.49625513,0.0001289,2]
[326909699,1715559039087,-324.50794331,0.00012898,2]
[326909700,1715559039097,-300.4858,0.00012898,2]
[326909701,1715559039106,-204.0719068,0.00012899,2]
[326909702,1715559039116,-155.0,0.00012899,2]
[326909703,1715559039126,-753.32,0.00012899,2]
[326909704,1715559039135,-129.80510059,0.00012899,2]
[326909705,1715559039147,-469.75489941,0.00012899,2]
[326909706,1715559039157,-753.32,0.00012899,2]
[326909707,1715559039166,-244.65900344,0.00012899,2]
[326909708,1715559039185,-354.90099656,0.00012899,2]
[326909709,1715559039195,-753.32,0.00012899,2]
[326909710,1715559039205,-79.91900344,0.00012899,2]
[326909713,1715559039902,-360.34000003,0.00012899,2]
[326909714,1715559040172,-159.30099653,0.00012899,2]
[326909715,1715559040182,-753.32,0.00012899,2]
[326909716,1715559040191,-599.56,0.00012899,2]
[326909717,1715559040201,-753.32,0.00012899,2]
[326909718,1715559040211,-599.56,0.00012899,2]
[326909719,1715559040221,-500.0,0.00012899,2]
[326909720,1715559040230,-500.0,0.00012899,2]
[326909721,1715559040240,-500.0,0.00012899,2]
[326909722,1715559040250,-500.0,0.00012899,2]
[326909723,1715559040260,-500.0,0.00012899,2]
[326909724,1715559040270,-500.0,0.00012899,2]
[326909725,1715559040279,-464.93900349,0.00012899,2]
[326909726,1715559040291,-35.06099651,0.00012899,2]
[326909727,1715559040300,-500.0,0.00012899,2]
[326909728,1715559040310,-474.93900349,0.00012899,2]
[326909752,1715559042911,-25.06099651,0.00012899,2]
[326909753,1715559042920,-500.0,0.00012899,2]
[326909754,1715559042930,-500.0,0.00012899,2]
[326909755,1715559042939,-500.0,0.00012899,2]
[326909756,1715559042948,-500.0,0.00012899,2]
[326909757,1715559042958,-500.0,0.00012899,2]
[326909758,1715559042967,-500.0,0.00012899,2]
[326909759,1715559042976,-689.63,0.00012899,2]
[326909760,1715559042985,-689.63,0.00012899,2]
[326909761,1715559042995,-689.63,0.00012899,2]
[326909762,1715559043004,-689.63,0.00012899,2]
[326909763,1715559043014,-689.63,0.00012899,2]
[326909764,1715559043026,-500.0,0.000129,2]
[326909765,1715559043036,-211000.48634784,0.000129,2]
[326909766,1715559043059,-14085.4801029,0.000129,2]
[326909838,1715559195170,2545.4383165,9.675e-05,2]
[326909839,1715559211086,2545.4383165,9.675e-05,2]
[326909840,1715559229084,915.99160424,9.675e-05,2]
[326909842,1715559314000,-155.0,0.00010212,2]
[326909843,1715559329956,-155.0,0.00010212,2]
[326909844,1715559340085,-155.0,0.00010212,2]
[326909845,1715559345534,-155.0,0.00010211,2]
[326909846,1715559370157,-155.0,0.00010213,2]
[326909847,1715559395091,-153.77612288,0.00010219,2]
[326909848,1715559456380,-2184.52280122,0.00010319,2]
[326909849,1715559919985,2207.0,0.00025,120]
[326909861,1715560232008,-345.4748,0.0001032,2]
[326909862,1715560232018,-22.19849241,0.0001045,2]
[326909863,1715560232030,-313.26890725,0.0001045,2]
[326909864,1715560232100,-164.53260034,0.0001045,2]
[326909865,1715560232110,-250.0,0.00010494,2]
[326909866,1715560232119,-601.15,0.00010533,2]
[326909867,1715560232129,-162.83,0.00010599,2]
[326909868,1715560232139,-510.84,0.00010607,2]
[326909869,1715560232148,-159.26315965,0.00010721,2]
[326909870,1715560232160,-2307.68509735,0.00010721,2]
[326909871,1715560232170,-250.0,0.00010775,2]
[326909872,1715560232180,-150.0,0.00010919,2]
[326909873,1715560232192,-1545.60225566,0.0001092,2]
[326909874,1715560232203,-3453.51952839,0.0001092,2]
[326909875,1715560232215,-5039.98851017,0.0001092,2]
[326909876,1715560232227,-12776.09315686,0.0001092,2]
[326909877,1715560232235,-1699.0,0.00010921,2]
[326909878,1715560232244,-2162.2,0.00010921,2]
[326909879,1715560232253,-499.99,0.00010921,2]
[326909880,1715560232263,-150.99,0.00010925,2]
[326909881,1715560232272,-150.99,0.00010925,2]
[326909882,1715560232281,-473.73,0.00010925,2]
[326909883,1715560232290,-196.64,0.00010926,2]
[326909884,1715560232299,-150.0,0.00010959,2]
[326909885,1715560232309,-3217.51,0.00011025,2]
[326909886,1715560232319,-1218.39789277,0.00011092,2]
[326909887,1715560232328,-162.83,0.00011151,2]
[326909888,1715560232337,-257.41029778,0.000112,2]
[326909890,1715560232347,-599.93,0.0001132,2]
[326909891,1715560232356,-599.93,0.00011323,2]
[326909893,1715560232365,-599.93,0.00011326,2]
[326909894,1715560232374,-599.93,0.00011329,2]
[326909896,1715560232383,-599.93,0.00011332,2]
[326909898,1715560232392,-599.93,0.00011335,2]
[326909900,1715560232401,-599.93,0.00011338,2]
[326909902,1715560232410,-599.93,0.00011341,2]
[326909904,1715560232419,-599.93,0.00011344,2]
[326909906,1715560232428,-599.93,0.00011347,2]
[326909908,1715560232439,-599.93,0.0001135,2]
[326909910,1715560232447,-599.93,0.00011353,2]
[326909912,1715560232456,-599.93,0.00011356,2]
[326909914,1715560232465,-599.93,0.00011359,2]
[326909917,1715560232474,-599.93,0.00011362,2]
[326909920,1715560232482,-599.93,0.00011365,2]
[326909923,1715560232491,-599.93,0.00011368,2]
[326909926,1715560232500,-599.93,0.00011371,2]
[326909929,1715560232509,-599.93,0.00011374,2]
[326909932,1715560232518,-599.93,0.00011377,2]
[326909935,1715560232527,-415.08,0.000114,2]
[326909937,1715560232536,-489.16,0.00011402,2]
[326909939,1715560232545,-168.38,0.00011581,2]
[326909941,1715560232554,-165.01,0.00011583,2]
[326909943,1715560232563,-510.84,0.00011933,2]
[326909945,1715560232573,-300.0,0.00012,2]
[326909947,1715560232583,-19546.0,0.00012,2]
[326909949,1715560232597,-1218.39789276,0.00012054,2]
[326909951,1715560232607,-4852.93716078,0.00012153,2]
[326909954,1715560232619,-147.06283922,0.00012153,2]
[326909955,1715560232628,-665.878933,0.00012157,2]
[326909957,1715560232638,-607.396995,0.00012157,2]
[326909959,1715560232647,-169.690756,0.00012157,2]
[326909961,1715560232656,-165.305068,0.00012157,2]
[326909963,1715560232665,-232.24519,0.00012157,2]
[326909965,1715560232677,-2429.587981,0.00012157,2]
[326909967,1715560232688,-271.505209,0.00012157,2]
[326909969,1715560232697,-17579.991438,0.00012157,2]
[326909971,1715560232706,-294.04961797,0.00012253,2]
[326909973,1715560232715,-500.0,0.00012258,2]
[326909974,1715560232725,-12067.28595981,0.00012259,2]
[326909975,1715560232766,-184.44737748,0.00012249,2]
[326909976,1715560232776,-412.70398942,0.00012259,2]
[326909977,1715560232788,-695.72180476,0.00012259,2]
[326909978,1715560232799,-7603.85073837,0.00012259,2]
[326909979,1715560232811,-2121.37763752,0.00012259,2]
[326909980,1715560232821,-1194.85289494,0.00012259,2]
[326909981,1715560232833,-3971.0701764,0.00012259,2]
[326909982,1715560232844,-950.37307554,0.00012259,2]
[326909983,1715560232872,-442.695,0.00012259,2]
[326909984,1715560232889,-574.25050338,0.00012259,2]
[326909985,1715560232900,-319.50034176,0.00012259,2]
[326909986,1715560232920,-1450.28399832,0.00012259,2]
[326909987,1715560232931,-447.16613231,0.00012259,2]
[326909988,1715560232944,-266.27999998,0.00012259,2]
[326909989,1715560232955,-752.4458828,0.00012259,2]
[326909993,1715560238015,-250.0,0.00010434,2]
[326909995,1715560238025,-4790.73664175,0.00012152,2]
[326909999,1715560238041,-3748.8938855,0.00012152,2]
[326910003,1715560238052,-1025.72594383,0.00012152,2]
[326910007,1715560238064,-366.83172432,0.00012152,2]
[326910016,1715560238111,-9686.74599248,0.00012152,2]
[326910018,1715560238121,-292.43380632,0.0001216,2]
[326910019,1715560238130,-654520.60936021,0.00012259,2]
[326910020,1715560238138,-47177.4388,0.0001226,2]
[326910021,1715560238147,-187.33440647,0.00012261,2]
[326910022,1715560238156,-665.878933,0.00012309,2]
[326910023,1715560238165,-607.396995,0.00012309,2]
[326910024,1715560238174,-165.305068,0.00012309,2]
[326910025,1715560238183,-232.24519,0.00012309,2]
[326910026,1715560238194,-2429.587981,0.00012309,2]
[326910027,1715560238203,-271.505209,0.00012309,2]
[326910028,1715560238212,-17579.991438,0.00012309,2]
[326910029,1715560238222,-3601.265,0.0001233,2]
[326910030,1715560238231,-7143.428,0.00012361,2]
[326910031,1715560238241,-2884.4339,0.00012361,2]
[326910032,1715560238251,-187.33440643,0.00012396,2]
[326910033,1715560238260,-3601.965,0.00012404,2]
[326910034,1715560238270,-608.0,0.00012461,2]
[326910035,1715560238280,-405.0,0.00012461,2]
[326910036,1715560238290,-1272.24070313,0.00012461,2]
[326910037,1715560238304,-607.45829687,0.00012461,2]
[326910038,1715560238313,-1059.0,0.00012461,2]
[326910039,1715560238322,-1463.0,0.00012461,2]
[326910040,1715560238332,-288.0,0.00012461,2]
[326910041,1715560238341,-801.667,0.00012461,2]
[326910042,1715560238350,-665.878933,0.00012461,2]
[326910043,1715560238360,-607.396995,0.00012461,2]
[326910044,1715560238369,-165.305068,0.00012461,2]
[326910045,1715560238380,-232.24519,0.00012461,2]
[326910046,1715560238389,-438.80170778,0.00012461,2]
[326910048,1715560238401,-1990.78627322,0.00012461,2]
[326910050,1715560238410,-271.505209,0.00012461,2]
[326910051,1715560238420,-276.49451777,0.00012461,2]
[326910052,1715560238432,-17303.49692023,0.00012461,2]
[326910053,1715560238442,-159.77636607,0.00012515,2]
[326910054,1715560238452,-1000.0,0.00012517,2]
[326910055,1715560238462,-2226.0653,0.00012517,2]
[326910056,1715560238472,-39047.74004687,0.00012517,2]
[326910058,1715560238483,-990.97165023,0.00012517,2]
[326910059,1715560238493,-1656.10551066,0.00012517,2]
[326910060,1715560238505,-2384.97019224,0.00012517,2]
[326910061,1715560238514,-187.33440643,0.00012531,2]
[326910062,1715560238524,-3000.0,0.00012603,2]
[326910064,1715560238533,-7500.0,0.00012603,2]
[326910066,1715560238542,-665.878933,0.00012613,2]
[326910068,1715560238552,-607.396995,0.00012613,2]
[326910069,1715560238561,-165.305068,0.00012613,2]
[326910070,1715560238571,-232.24519,0.00012613,2]
[326910071,1715560238580,-2429.587981,0.00012613,2]
[326910072,1715560238590,-271.505209,0.00012613,2]
[326910073,1715560238604,-17579.991438,0.00012613,2]
[326910074,1715560238614,-1135.44371454,0.00012642,2]
[326910075,1715560238624,-187.33440643,0.00012665,2]
[326910076,1715560238635,-1563.06983317,0.00012686,2]
[326910077,1715560238644,-2889.3223,0.00012699,2]
[326910078,1715560238654,-179.61289294,0.00012699,2]
[326910079,1715560238663,-174.53743641,0.00012699,2]
[326910080,1715560238674,-500.0,0.000127,2]
[326910081,1715560238684,-169.690756,0.00012765,2]
[326910082,1715560238693,-665.878933,0.00012765,2]
[326910083,1715560238702,-607.396995,0.00012765,2]
[326910084,1715560238711,-165.305068,0.00012765,2]
[326910085,1715560238721,-232.24519,0.00012765,2]
[326910086,1715560238731,-2429.587981,0.00012765,2]
[326910087,1715560238741,-271.505209,0.00012765,2]
[326910088,1715560238750,-17579.991438,0.00012765,2]
[326910089,1715560238760,-384.88406181,0.00012768,2]
[326910090,1715560238769,-173.35407154,0.00012778,2]
[326910091,1715560238778,-273.65669406,0.0001278,2]
[326910092,1715560238788,-500.0,0.00012792,2]
[326910093,1715560238797,-125052.2887,0.00012799,2]
[326910094,1715560238807,-565.8337,0.00012799,2]
[326910095,1715560238817,-1364.95846221,0.00012799,2]
[326910096,1715560238826,-187.33440643,0.000128,2]
[326910097,1715560238836,-500.0,0.000128,2]
[326910098,1715560238846,-1364.95846212,0.00012807,2]
[326910099,1715560238856,-500.0,0.00012809,2]
[326910100,1715560238865,-1364.95846212,0.00012815,2]
[326910101,1715560238875,-500.0,0.00012818,2]
[326910102,1715560238885,-1364.95846212,0.00012823,2]
[326910103,1715560238895,-500.0,0.00012827,2]
[326910104,1715560238904,-489.16,0.00012827,2]
[326910105,1715560238914,-1364.95846212,0.00012831,2]
[326910106,1715560238924,-500.0,0.00012836,2]
[326910107,1715560238934,-1000.0,0.00012837,2]
[326910108,1715560238944,-1364.95846212,0.00012839,2]
[326910109,1715560238954,-500.0,0.00012844,2]
[326910110,1715560238964,-1364.95846212,0.00012846,2]
[326910111,1715560238974,-652.74050014,0.0001285,2]
[326910112,1715560238983,-500.0,0.00012853,2]
[326910113,1715560238993,-1364.95846212,0.00012854,2]
[326910114,1715560239002,-500.0,0.00012862,2]
[326910115,1715560239013,-1364.95846212,0.00012862,2]
[326910116,1715560239023,-1364.95846212,0.0001287,2]
[326910117,1715560239033,-500.0,0.00012871,2]
[326910118,1715560239044,-596.38,0.00012876,2]
[326910119,1715560239054,-860.36,0.00012876,2]
[326910120,1715560239064,-500.0,0.00012876,2]
[326910121,1715560239074,-500.0,0.00012876,2]
[326910122,1715560239084,-500.0,0.00012876,2]
[326910123,1715560239094,-500.0,0.00012876,2]
[326910124,1715560239104,-500.0,0.00012876,2]
[326910125,1715560239114,-500.0,0.00012876,2]
[326910126,1715560239125,-500.0,0.00012876,2]
[326910127,1715560239135,-500.0,0.00012876,2]
[326910128,1715560239145,-500.0,0.00012876,2]
[326910129,1715560239157,-500.0,0.00012876,2]
[326910130,1715560239167,-500.0,0.00012876,2]
[326910131,1715560239178,-500.0,0.00012876,2]
[326910132,1715560239188,-500.0,0.00012876,2]
[326910133,1715560239201,-500.0,0.00012876,2]
[326910134,1715560239212,-628.32,0.00012876,2]
[326910135,1715560239222,-517.22,0.00012876,2]
[326910136,1715560239234,-517.22,0.00012876,2]
[326910137,1715560239244,-517.22,0.00012876,2]
[326910138,1715560239254,-517.22,0.00012876,2]
[326910139,1715560239265,-1364.95846212,0.00012878,2]
[326910140,1715560239276,-500.0,0.0001288,2]
[326910141,1715560239286,-1000.0,0.0001288,2]
[326910142,1715560239297,-10000.0,0.0001288,2]
[326910143,1715560239307,-383.86180491,0.0001288,2]
[326910144,1715560239317,-4186.90999248,0.0001288,2]
[326910145,1715560239328,-383.86180489,0.00012885,2]
[326910146,1715560239339,-4186.90999247,0.00012885,2]
[326910147,1715560239350,-1364.95846212,0.00012886,2]
[326910148,1715560239360,-3325.4077273,0.00012886,2]
[326910149,1715560239371,-500.0,0.00012888,2]
[326910150,1715560239382,-383.86180489,0.00012889,2]
[326910151,1715560239391,-4186.90999247,0.00012889,2]
[326910152,1715560239401,-5415.0,0.0001289,2]
[326910153,1715560239412,-512.74283902,0.00012892,2]
[326910154,1715560239423,-273.46105239,0.00012895,2]
[326910155,1715560239433,-500.0,0.00012896,2]
[326910156,1715560239447,-517.22,0.00012896,2]
[326910157,1715560239458,-473.24239097,0.00012897,2]
[326910158,1715560239468,-2358.56522313,0.00012897,2]
[326910159,1715560239479,-317.01827556,0.00012897,2]
[326910160,1715560239490,-1264.0340538,0.00012897,2]
[326910161,1715560239501,-156.63582093,0.00012897,2]
[326910162,1715560239511,-174.87662818,0.00012897,2]
[326910163,1715560239522,-195.96696143,0.00012897,2]
[326910164,1715560239533,-261.48940167,0.00012897,2]
[326910165,1715560239544,-194.36466099,0.00012897,2]
[326910166,1715560239554,-438.55520697,0.00012897,2]
[326910167,1715560239564,-265.00349736,0.00012897,2]
[326910168,1715560239574,-155.0,0.00012897,2]
[326910169,1715560239584,-1523.88922511,0.00012897,2]
[326910170,1715560239598,-660.07063343,0.00012897,2]
[326910171,1715560239608,-5561.34886164,0.00012897,2]
[326910172,1715560239619,-155.0,0.00012897,2]
[326910173,1715560239629,-155.51216996,0.00012897,2]
[326910174,1715560239639,-1270.93207056,0.00012897,2]
[326910175,1715560239846,-205.83004919,0.00012897,2]
[326910176,1715560239857,-2946.29159161,0.00012897,2]
[326910177,1715560239867,-676.07047739,0.00012897,2]
[326910178,1715560239877,-159.15312055,0.00012897,2]
[326910179,1715560239886,-616.51901983,0.00012897,2]
[326910180,1715560239896,-1352.02412704,0.00012897,2]
[326910181,1715560239906,-155.3047756,0.00012897,2]
[326910182,1715560239916,-318.59270315,0.00012897,2]
[326910183,1715560239925,-155.55226398,0.00012897,2]
[326910184,1715560239935,-306.92143567,0.00012897,2]
[326910185,1715560239946,-413.30371254,0.00012897,2]
[326910186,1715560239956,-535.00984553,0.00012897,2]
[326910187,1715560239966,-648.19013736,0.00012897,2]
[326910188,1715560239976,-155.51813378,0.00012897,2]
[326910189,1715560239985,-367.00964115,0.00012897,2]
[326910190,1715560239995,-362.66162767,0.00012897,2]
[326910191,1715560240006,-155.0,0.00012897,2]
[326910192,1715560240016,-1997.82151721,0.00012897,2]
[326910193,1715560240026,-226.76655076,0.00012897,2]
[326910194,1715560240035,-1212.7569798,0.00012897,2]
[326910195,1715560240045,-7193.91701265,0.00012897,2]
[326910196,1715560240059,-1165.2225194,0.00012897,2]
[326910197,1715560240069,-522.0096725,0.00012897,2]
[326910198,1715560240079,-165.39781373,0.00012897,2]
[326910199,1715560240089,-194.86923354,0.00012897,2]
[326910200,1715560240099,-298.54378139,0.00012897,2]
[326910201,1715560240109,-64.55413931,0.00012897,2]
[326910202,1715560240121,-111.3596473,0.00012897,2]
[326910203,1715560240131,-247.59275289,0.00012897,2]
[326910204,1715560240142,-215.44674244,0.00012897,2]
[326910205,1715560240152,-21.64741203,0.00012897,2]
[326910206,1715560240164,-133.46963534,0.00012897,2]
[326910207,1715560240174,-259.38486466,0.00012897,2]
[326910208,1715560240275,-5911.0,0.00012461,2]
[326910209,1715560240284,-150.0,0.00012544,2]
[326910210,1715560240294,-197.28221284,0.0001288,2]
[326910211,1715560240303,-240.61513534,0.00012897,2]
[326910212,1715560240313,-155.69298702,0.00012898,2]
[326910213,1715560240323,-288.84512654,0.00012898,2]
[326910214,1715560240332,-155.0,0.00012898,2]
[326910215,1715560240341,-189.8430996,0.00012898,2]
[326910216,1715560240351,-596.38,0.00012898,2]
[326910217,1715560240360,-596.38,0.00012898,2]
[326910218,1715560240370,-596.38,0.00012898,2]
[326910219,1715560240379,-596.38,0.00012898,2]
[326910220,1715560240388,-596.38,0.00012898,2]
[326910221,1715560240397,-596.38,0.00012898,2]
[326910222,1715560240407,-596.38,0.00012898,2]
[326910223,1715560240416,-860.36,0.00012898,2]
[326910224,1715560240425,-860.36,0.00012898,2]
[326910225,1715560240434,-860.36,0.00012898,2]
[326910226,1715560240444,-860.36,0.00012898,2]
[326910227,1715560240454,-860.36,0.00012898,2]
[326910228,1715560240463,-860.36,0.00012898,2]
[326910229,1715560240473,-860.36,0.00012898,2]
[326910230,1715560240482,-9429.86766695,0.00012899,2]
[326910231,1715560240494,-9077.13453,0.00012899,2]
[326910232,1715560240506,-3925.699,0.00012899,2]
[326910233,1715560240530,-11253.80955332,0.00012899,2]
[326910234,1715560240540,-596.38,0.00012899,2]
[326910235,1715560240550,-596.38,0.00012899,2]
[326910236,1715560240560,-596.38,0.00012899,2]
[326910237,1715560240569,-596.38,0.00012899,2]
[326910238,1715560240579,-860.36,0.00012899,2]
[326910239,1715560240589,-860.36,0.00012899,2]
[326910240,1715560240602,-860.36,0.00012899,2]
[326910241,1715560240611,-860.36,0.00012899,2]
[326910242,1715560240620,-500.0,0.00012899,2]
[326910243,1715560240630,-500.0,0.00012899,2]
[326910244,1715560240640,-500.0,0.00012899,2]
[326910245,1715560240650,-500.0,0.00012899,2]
[326910246,1715560240660,-500.0,0.00012899,2]
[326910247,1715560240671,-500.0,0.00012899,2]
[326910248,1715560240682,-500.0,0.00012899,2]
[326910249,1715560240692,-500.0,0.00012899,2]